bitfinex-derivatives/quotes_SOLF0:USTF0_20240827
["timestamp","ask_amount","ask_price","bid_price","bid_amount"]
[1724759880250,11.66260143,154.2,154.19,8.00763244]
[1724759880951,5.30808264,154.2,154.19,8.00763244]
[1724759881147,5.30808264,154.2,154.19,0.04763244]
[1724759881343,8.55008264,154.2,154.19,0.04763244]
[1724759881952,3.242,154.2,154.19,0.04763244]
[1724759882248,8.55062317,154.2,154.19,0.04763244]
[1724759883654,5.30862317,154.2,154.12,4.53188828]
[1724759883954,5.30862317,154.19,154.15,7.96]
[1724759884150,5.30862317,154.19,154.12,8.29188828]
[1724759884151,5.30862317,154.18,154.12,6.96608828]
[1724759884354,5.30862317,154.17,154.02,3.8511]
[1724759884558,5.30862317,154.16,154.12,7.96]
[1724759884851,8.55182317,154.15,154.12,0.04734319]
[1724759885050,3.2432,154.15,154.14,7.96]
[1724759885248,0.04613547,154.16,154.14,11.2032]
[1724759885458,5.31004566,154.15,154.14,7.96]
[1724759885752,0.04613547,154.16,154.12,0.04734319]
[1724759885953,8.30997989,154.15,154.12,0.04734319]
[1724759886253,8.30997989,154.14,154.12,8.00734319]
[1724759886448,11.55347989,154.13,154.12,8.00734319]
[1724759888452,11.54966692,154.13,154.12,8.00734319]
[1724759888749,3.2435,154.13,154.12,8.00734319]
[1724759888955,11.55002006,154.13,154.12,8.00734319]
[1724759889151,11.55002006,154.13,154.12,0.04734319]
[1724759891754,3.2435,154.13,154.12,0.04734319]
[1724759892052,11.5492809,154.13,154.12,0.04734319]
[1724759894956,16.2657809,154.13,154.07,7.96]
[1724759895269,7.96,154.13,154.07,7.96]
[1724759895564,3.2445,154.09,154.07,7.96]
[1724759895756,8.30367364,154.08,154.07,7.96]
[1724759897662,13.60501782,154.08,154.07,7.96]
[1724759898765,13.60796555,154.08,154.07,7.96]
[1724759899064,0.04438894,154.09,154.07,7.96]
[1724759899364,61.66931125,154.15,154.08,7.96]
[1724759899569,5.29259405,154.14,154.11,7.96]
[1724759899761,5.29259405,154.13,154.11,7.96]
[1724759899968,5.29259405,154.12,154.11,7.96]
[1724759901872,5.29259405,154.12,154.11,11.2039]
[1724759905671,0.04287977,154.13,154.11,11.2039]
[1724759905875,5.29205466,154.12,154.11,11.2039]
[1724759909269,0.04287977,154.13,154.11,11.2039]
[1724759909674,0.04287977,154.13,154.12,14.47851537]
[1724759909877,3.9,154.2,154.12,7.96]
[1724759910074,1.3403,154.21,154.17,7.96]
[1724759910376,3.2424,154.18,154.17,7.96]
[1724759910578,8.53566009,154.18,154.17,7.96]
[1724759911475,5.29326009,154.18,154.17,7.96]
[1724759911674,0.0445795,154.19,154.17,7.96]
[1724759911878,0.0445795,154.19,154.18,7.96]
[1724759912176,0.0445795,154.19,154.18,11.2024]
[1724759912772,3.2412,154.24,154.19,3.242]
[1724759912980,3.9,154.25,154.21,7.96]
[1724759913172,14.3939,154.28,154.21,7.96]
[1724759913783,0.04555016,154.26,154.23,0.04277655]
[1724759913981,3.2411,154.25,154.23,0.04277655]
[1724759914484,3.28635016,154.26,154.23,0.04277655]
[1724759914779,0.04555016,154.26,154.23,0.04277655]
[1724759916278,3.241,154.25,154.23,0.04277655]
[1724759916579,0.04555016,154.26,154.23,0.04277655]
[1724759917676,3.241,154.25,154.23,0.04277655]
[1724759918482,3.2412,154.24,154.23,0.04277655]
[1724759919384,0.04555016,154.26,154.23,0.04277655]
[1724759921279,3.2411,154.25,154.23,0.04277655]
[1724759923787,5.2865465,154.24,154.23,0.04277655]
[1724759925686,5.2865465,154.24,154.23,11.24417655]
[1724759926487,3.28635016,154.26,154.23,8.00277655]
[1724759926488,0.04555016,154.26,154.23,8.00277655]
[1724759926681,0.04555016,154.26,154.25,7.96]
[1724759927082,0.04555016,154.26,154.25,3.241]
[1724759927277,0.04555016,154.26,154.25,11.201]
[1724759939594,13.0933,154.34,154.25,7.96]
[1724759939793,5.28553308,154.33,154.28,7.96]
[1724759939984,13.0933,154.34,154.28,7.96]
[1724759940385,3.2399,154.3,154.28,7.96]
[1724759941694,3.28675208,154.31,154.28,11.2003]
[1724759941993,0.04705208,154.31,154.28,7.96]
[1724759942390,3.2399,154.3,154.28,7.96]
[1724759942893,3.2403,154.28,154.27,0.041841]
[1724759945785,3.2402,154.29,154.27,0.041841]
[1724759945985,3.2402,154.29,154.28,7.96]
[1724759947384,3.2402,154.29,154.27,0.041841]
[1724759949288,8.00705208,154.31,154.27,0.041841]
[1724759949494,5.28612343,154.3,154.27,0.041841]
[1724759949803,3.2401,154.3,154.27,8.001841]
[1724759950194,0.04705208,154.31,154.27,8.001841]
[1724759950996,3.2399,154.3,154.27,8.001841]
[1724759953197,3.2399,154.3,154.27,11.242341]
[1724759954398,3.2399,154.3,154.27,3.282341]
[1724759959099,3.2401,154.29,154.27,0.041841]
[1724759959298,0.04705208,154.31,154.27,0.041841]
[1724759961002,3.2403,154.29,154.27,0.041841]
[1724759961202,0.04705208,154.31,154.27,0.041841]
[1724759961394,3.2403,154.28,154.27,0.041841]
[1724759961593,8.52650889,154.28,154.27,0.041841]
[1724759961798,3.2403,154.28,154.27,0.041841]
[1724759963698,8.52652136,154.28,154.27,0.041841]
[1724759965908,3.2403,154.28,154.27,0.041841]
[1724759966299,8.52610182,154.28,154.27,0.041841]
[1724759966498,13.8117187,154.28,154.27,0.041841]
[1724759967199,3.2414,154.23,154.2,3.2419]
[1724759967503,5.28580182,154.28,154.21,7.96]
[1724759967710,5.28580182,154.28,154.21,11.2018]
[1724759967711,3.2413,154.24,154.21,11.2018]
[1724759968206,3.28951281,154.24,154.21,11.24797868]
[1724759968605,0.04821281,154.24,154.23,7.96]
[1724759969113,5.3336195,154.24,154.23,7.96]
[1724759969303,0.04821281,154.24,154.23,7.96]
[1724759969505,5.33373617,154.24,154.23,11.2014]
[1724759970710,5.33373617,154.24,154.23,7.96]
[1724759973008,0.04821281,154.24,154.23,7.96]
[1724759973203,5.33401923,154.24,154.21,0.04617868]
[1724759973403,5.28580642,154.23,154.21,3.28787868]
[1724759973606,5.28580642,154.23,154.22,7.96]
[1724759975212,5.28580642,154.23,154.22,11.2016]
[1724759976601,0.04821281,154.24,154.22,11.2016]
[1724759976808,5.1335,154.29,154.22,7.96]
[1724759977002,6.35198567,154.28,154.25,7.96]
[1724759977207,3.2407,154.26,154.24,7.96]
[1724759978918,0.04192262,154.27,154.25,7.96]
[1724759979413,6.39458894,154.27,154.25,7.96]
[1724759979618,6.35266632,154.26,154.25,7.96]
[1724759980015,3.28262262,154.27,154.25,7.96]
[1724759980214,6.35266632,154.26,154.25,7.96]
[1724759982812,3.28262262,154.27,154.25,7.96]
[1724759983009,6.35345965,154.26,154.25,7.96]
[1724759983312,6.35368387,154.26,154.25,7.96]
[1724759986216,3.28262262,154.27,154.25,11.201]
[1724759986715,0.04192262,154.27,154.25,11.201]
[1724759986919,0.04192262,154.27,154.26,3.2407]
[1724759987125,6.39600744,154.27,154.26,3.2407]
[1724759987426,6.39600744,154.27,154.25,3.2409]
[1724759987628,6.35408482,154.26,154.23,0.04963702]
[1724759987928,0.04192262,154.27,154.25,7.96]
[1724759988128,6.35438145,154.26,154.25,7.96]
[1724759988824,11.63897497,154.26,154.25,11.201]
[1724759989421,5.28459352,154.26,154.25,11.201]
[1724759989623,11.63865772,154.26,154.25,11.201]
[1724759990820,0.04192262,154.27,154.25,11.201]
[1724759991023,0.04192262,154.27,154.26,11.2007]
[1724760000941,0.04192262,154.27,154.26,3.2407]
[1724760001133,0.04192262,154.27,154.26,11.2007]
[1724760001827,0.04192262,154.27,154.26,7.96]
[1724760002538,0.04192262,154.27,154.25,3.2408]
[1724760002738,0.04192262,154.27,154.26,7.96]
[1724760003738,3.82,154.34,154.31,7.96]
[1724760004536,22.69248519,154.37,154.31,7.96]
[1724760004837,0.04686876,154.34,154.31,0.04434865]
[1724760005040,25.93098519,154.37,154.33,11.1991]
[1724760005243,7.00878257,154.4,154.31,0.04434865]
[1724760005432,7.00878257,154.4,154.35,7.96]
[1724760005631,3.18878257,154.4,154.35,7.96]
[1724760005831,11.78,154.42,154.35,7.96]
[1724760006035,8.00103057,154.4,154.37,0.04837695]
[1724760006233,3.2382,154.38,154.37,0.04837695]
[1724760008043,7.96,154.38,154.3,3.2399]
[1724760008244,9.2819,154.38,154.3,11.1999]
[1724760008442,7.96,154.36,154.29,7.96]
[1724760008637,7.96,154.36,154.27,3.82]
[1724760008638,7.96,154.36,154.31,7.96]
[1724760008949,7.96,154.36,154.27,3.82]
[1724760009139,3.28591548,154.33,154.3,0.04117494]
[1724760009338,0.04641548,154.33,154.3,0.04117494]
[1724760009741,3.2396,154.32,154.3,0.04117494]
[1724760009940,0.04641548,154.33,154.31,7.96]
[1724760011043,3.28571548,154.33,154.31,7.96]
[1724760011349,3.28571548,154.33,154.3,8.00117494]
[1724760012649,3.2397,154.32,154.3,8.00117494]
[1724760012945,8.00641548,154.33,154.3,0.04117494]
[1724760013142,11.1997,154.31,154.3,0.04117494]
[1724760014042,3.2404,154.28,154.24,11.201]
[1724760014648,3.2407,154.27,154.23,11.2014]
[1724760015045,3.28981638,154.27,154.23,11.25052464]
[1724760015253,0.04911638,154.27,154.23,0.04912464]
[1724760015951,7.96,154.23,154.13,3.82]
[1724760016146,7.96,154.23,154.16,7.96]
[1724760016945,0.04705898,154.21,154.18,0.04664921]
[1724760017141,3.2422,154.19,154.18,0.04664921]
[1724760017345,0.04705898,154.21,154.12,7.96]
[1724760017346,7.96,154.2,154.12,7.96]
[1724760017542,7.96,154.18,154.06,7.6084]
[1724760017748,3.2434,154.14,154.11,7.96]
[1724760017950,3.2434,154.14,154.09,23.1841]
[1724760018251,0.04100282,154.13,154.1,0.04092602]
[1724760018455,3.2439,154.11,154.1,0.04092602]
[1724760019754,23.76,154.13,154.01,26.35520307]
[1724760020051,19.94,154.11,154.01,3.16920307]
[1724760020251,19.94,154.09,154.0,19.94]
[1724760020554,19.94,154.11,154.0,19.94]
[1724760020867,0.04853871,154.07,154.04,0.04272758]
[1724760021152,0.04853871,154.07,153.98,4.04]
[1724760021350,0.04853871,154.07,153.98,3.20749964]
[1724760021549,0.04853871,154.07,153.97,19.94]
[1724760021751,19.94,154.08,153.98,3.26461994]
[1724760022157,3.2462,154.01,153.98,3.26461994]
[1724760022351,3.28732376,154.01,153.98,3.30919427]
[1724760022557,0.04112376,154.01,153.99,19.94]
[1724760023250,0.04112376,154.01,153.99,21.2003]
[1724760023456,0.04112376,154.01,153.99,25.7479]
[1724760023656,0.04112376,154.01,153.99,22.5016]
[1724760023953,4.04,154.1,153.99,22.5016]
[1724760024156,4.04,154.11,154.05,19.94]
[1724760024357,21.2788,154.14,154.05,19.94]
[1724760024546,4.04,154.13,154.05,19.94]
[1724760024752,4.04,154.13,154.07,0.04286805]
[1724760024753,0.04144525,154.11,154.07,0.04286805]
[1724760027353,3.2445,154.09,154.07,0.04286805]
[1724760028353,3.28554525,154.11,154.07,0.04286805]
[1724760028963,3.2445,154.09,154.07,0.04286805]
[1724760029861,3.2445,154.08,154.07,0.04286805]
[1724760031061,3.2444,154.09,154.07,0.04286805]
[1724760032259,3.2445,154.08,154.07,0.04286805]
[1724760035863,23.1845,154.08,154.07,0.04286805]
[1724760036269,19.94,154.08,154.0,7.2861]
[1724760036764,3.2453,154.05,154.0,7.2861]
[1724760036962,19.94,154.08,153.99,1.2603]
[1724760037267,0.04283719,154.05,154.02,0.04479586]
[1724760037463,3.2456,154.03,154.02,0.04479586]
[1724760039365,19.94,154.04,153.95,71.20365672]
[1724760039662,19.94,154.04,153.94,4.04]
[1724760039859,19.94,154.04,153.95,19.94]
[1724760040067,3.2461,154.01,153.97,3.2467]
[1724760040265,3.28699971,154.01,153.97,3.2467]
[1724760042864,3.2465,153.99,153.96,3.247]
[1724760043060,0.04089971,154.01,153.96,3.247]
[1724760044061,3.2464,154.0,153.96,3.247]
[1724760044464,0.04089971,154.01,153.95,3.2472]
[1724760044962,3.2466,153.99,153.95,3.2472]
[1724760045375,0.04089971,154.01,153.95,3.2472]
[1724760046069,3.2466,153.99,153.95,3.2472]
[1724760046767,0.04089971,154.01,153.95,3.2472]
[1724760046966,0.04089971,154.01,153.94,3.2845137]
[1724760047266,3.2466,153.99,153.94,3.2845137]
[1724760048172,3.2466,153.99,153.95,3.2471]
[1724760049361,3.2466,153.99,153.96,3.2471]
[1724760050577,0.04089971,154.01,153.95,3.2472]
[1724760050964,0.04089971,154.01,153.94,3.2845137]
[1724760051168,0.04089971,154.01,153.97,19.94]
[1724760051565,0.04089971,154.01,154.0,3.2462]
[1724760053476,3.2453,154.05,154.01,3.2458]
[1724760053672,19.94,154.08,153.99,1.3115]
[1724760053871,5.4998,154.1,153.98,5.4714]
[1724760053872,19.94,154.05,153.98,5.4714]
[1724760054179,3.2458,154.02,153.99,3.2464]
[1724760054563,0.04863646,154.02,153.99,0.04159782]
[1724760054765,3.246,154.01,153.99,0.04159782]
[1724760054971,0.04863646,154.02,153.99,0.04159782]
[1724760055773,3.246,154.01,153.99,0.04159782]
[1724760057070,3.2462,154.0,153.99,0.04159782]
[1724760059572,3.2461,154.01,153.99,0.04159782]
[1724760060668,3.29453646,154.02,153.99,0.04159782]
[1724760061672,0.04863646,154.02,153.99,3.28799782]
[1724760062374,3.29443646,154.02,153.99,3.28799782]
[1724760062778,3.29443646,154.02,153.99,0.04159782]
[1724760062981,3.246,154.01,153.99,0.04159782]
[1724760063373,0.04863646,154.02,153.99,0.04159782]
[1724760063670,3.29453646,154.02,153.99,0.04159782]
[1724760063870,0.04863646,154.02,153.99,0.04159782]
[1724760065077,3.2461,154.01,153.99,0.04159782]
[1724760065675,0.04863646,154.02,153.99,0.04159782]
[1724760066075,3.246,154.01,153.99,0.04159782]
[1724760067983,3.2462,154.0,153.99,0.04159782]
[1724760070377,0.04863646,154.02,153.86,25.92]
[1724760070378,1.2814,154.01,153.91,21.2243]
[1724760070980,3.2468,153.98,153.94,3.2473]
[1724760071181,1.2814,154.01,153.94,3.2473]
[1724760071381,0.04279595,153.98,153.94,3.2473]
[1724760071780,3.247,153.97,153.93,3.2477]
[1724760072283,3.2481,153.92,153.88,3.2486]
[1724760072586,0.04687692,153.92,153.88,3.2486]
[1724760072885,0.04687692,153.92,153.88,19.94]
[1724760073183,0.04687692,153.92,153.87,1.2686]
[1724760073184,0.04687692,153.92,153.9,19.94]
[1724760073686,0.04687692,153.92,153.91,3.2481]
[1724760075382,3.2469,153.97,153.9,19.94]
[1724760075588,3.2469,153.97,153.92,19.94]
[1724760075787,3.2467,153.98,153.92,19.94]
[1724760076289,3.2467,153.98,153.93,1.31761227]
[1724760076590,0.04316521,153.97,153.94,3.2473]
[1724760076984,0.04316521,153.97,153.93,1.31761227]
[1724760078394,3.29006521,153.97,153.94,3.2474]
[1724760079593,0.04316521,153.97,153.95,3.2473]
[1724760079790,0.04316521,153.97,153.93,1.31761227]
[1724760080192,3.29006521,153.97,153.94,3.2474]
[1724760080392,0.04316521,153.97,153.93,1.31761227]
[1724760080793,3.2472,153.96,153.93,1.31761227]
[1724760080998,0.04316521,153.97,153.93,0.04561227]
[1724760081395,24.22316521,153.97,153.93,0.04561227]
[1724760081888,3.2475,153.94,153.93,0.04561227]
[1724760086700,0.04316521,153.97,153.93,0.04561227]
[1724760087205,3.2475,153.95,153.93,0.04561227]
[1724760088202,3.2475,153.94,153.93,0.04561227]
[1724760089197,19.94,153.96,153.87,1.3415]
[1724760089397,19.94,153.96,153.86,23.189]
[1724760089798,3.2483,153.91,153.86,26.36973882]
[1724760090100,19.94,153.94,153.84,6.52347465]
[1724760090300,0.04217635,153.91,153.84,3.2495]
[1724760090501,3.2486,153.89,153.84,3.2495]
[1724760090805,0.04217635,153.91,153.85,3.31024525]
[1724760091201,3.2486,153.89,153.85,3.31024525]
[1724760091398,0.04217635,153.91,153.87,19.94]
[1724760091606,0.04173352,153.91,153.87,19.94]
[1724760091999,0.04173352,153.91,153.87,23.1889]
[1724760092601,0.04173352,153.91,153.87,19.94]
[1724760092807,0.04173352,153.91,153.85,21.2048]
[1724760093297,3.2484,153.9,153.85,21.2048]
[1724760093496,0.04173352,153.91,153.84,3.29724733]
[1724760094100,3.2487,153.89,153.84,6.54664733]
[1724760094309,3.2487,153.89,153.84,3.29724733]
[1724760094607,3.2484,153.9,153.85,23.1892]
[1724760095509,3.2485,153.89,153.85,23.1892]
[1724760096907,3.2484,153.9,153.85,23.1892]
[1724760097306,3.2484,153.9,153.86,3.2491]
[1724760099209,3.2484,153.9,153.85,19.94]
[1724760099210,3.28993352,153.91,153.87,23.1888]
[1724760100007,0.04173352,153.91,153.9,3.2483]
[1724760100906,22.4907,154.0,153.89,19.94]
[1724760101207,22.4907,154.0,153.92,19.94]
[1724760101208,4.24,153.99,153.92,19.94]
[1724760102003,0.04949119,153.97,153.94,0.04342844]
[1724760102512,3.2473,153.95,153.94,0.04342844]
[1724760102905,0.04949119,153.97,153.94,0.04342844]
[1724760103104,3.2471,153.96,153.94,0.04342844]
[1724760103607,3.2473,153.95,153.94,0.04342844]
[1724760107106,3.2483,153.91,153.87,3.2488]
[1724760107911,3.248,153.92,153.87,3.2488]
[1724760108114,0.04841781,153.91,153.87,3.2488]
[1724760108906,3.29661781,153.91,153.87,3.2488]
[1724760109406,0.04841781,153.91,153.87,3.2488]
[1724760109806,0.04841781,153.91,153.88,3.2487]
[1724760111018,0.04841781,153.91,153.86,23.189]
[1724760111317,0.04841781,153.91,153.86,19.94]
[1724760112215,3.29661781,153.91,153.87,3.2488]
[1724760113311,3.2486,153.89,153.86,3.2491]
[1724760120820,0.04841781,153.91,153.84,26.8082]
[1724760121416,3.2484,153.9,153.84,26.8082]
[1724760122012,19.94,153.88,153.78,19.94]
[1724760122319,0.04895357,153.85,153.82,19.94]
[1724760122517,0.04254804,153.85,153.84,3.2496]
[1724760122821,63.67225088,153.93,153.84,19.94]
[1724760123011,3.2485,153.89,153.86,3.2491]
[1724760123918,3.29456477,153.89,153.86,3.29154414]
[1724760124318,3.2488,153.88,153.86,0.04244414]
[1724760125920,0.04606477,153.89,153.87,7.98]
[1724760125921,3.29466477,153.89,153.87,7.98]
[1724760127113,4.24,153.88,153.73,6.5037]
[1724760127312,4.24,153.88,153.82,7.98]
[1724760127716,3.2494,153.86,153.82,7.98]
[1724760127912,66.99722761,153.93,153.85,7.98]
[1724760127913,4.24,153.89,153.85,7.98]
[1724760128221,3.2489,153.88,153.85,7.98]
[1724760128416,0.0409345,153.89,153.85,7.98]
[1724760129118,3.2489,153.88,153.85,7.98]
[1724760129320,0.0409345,153.89,153.86,7.98]
[1724760129621,65.63905088,153.93,153.89,3.2485]
[1724760129924,1.2234,154.03,153.92,7.98]
[1724760130221,3.247,153.97,153.95,7.98]
[1724760130810,0.0438363,153.98,153.95,7.98]
[1724760131018,0.0438363,153.98,153.96,7.98]
[1724760132220,0.0438363,153.98,153.96,19.95]
[1724760133320,0.0438363,153.98,153.96,23.1971]
[1724760134413,0.0438363,153.98,153.94,19.99170195]
[1724760134822,3.2906363,153.98,153.94,19.99170195]
[1724760135920,3.2906363,153.98,153.94,23.23900195]
[1724760136121,0.0438363,153.98,153.94,19.99170195]
[1724760136415,0.0438363,153.98,153.95,3.2473]
[1724760136818,0.0438363,153.98,153.96,1.2655]
[1724760137016,0.0438363,153.98,153.96,21.2155]
[1724760137223,0.0438363,153.98,153.97,3.2468]
[1724760137422,4.24,154.05,153.96,21.2155]
[1724760137620,4.24,154.05,153.98,19.95]
[1724760138124,3.2459,154.02,153.98,23.1965]
[1724760138325,3.28870581,154.02,153.98,23.23872642]
[1724760138727,3.246,154.01,153.98,19.99222642]
[1724760139222,0.04280581,154.02,153.98,19.99222642]
[1724760139823,3.246,154.01,153.98,19.99222642]
[1724760140830,3.2463,154.0,153.98,19.99222642]
[1724760141522,3.2463,154.0,153.98,0.04222642]
[1724760142325,3.2464,153.99,153.98,0.04222642]
[1724760148833,3.2464,153.99,153.98,0.00342642]
[1724760152034,11.2364,153.99,153.98,0.00342642]
[1724760155337,3.2464,153.99,153.98,0.00342642]
[1724760159441,12.39280581,154.02,153.98,0.00342642]
[1724760159742,4.40280581,154.02,153.98,0.00342642]
[1724760161333,3.2464,153.99,153.98,0.00342642]
[1724760166649,4.40280581,154.02,153.98,0.00342642]
[1724760166846,0.04280581,154.02,153.98,0.00342642]
[1724760167148,12.39280581,154.02,153.98,0.00342642]
[1724760168254,3.2464,153.99,153.98,0.00342642]
[1724760183560,11.2364,153.99,153.98,0.00342642]
[1724760184062,11.2364,153.99,153.9,11.847]
[1724760184063,3.2481,153.92,153.9,3.857]
[1724760186767,3.29125525,153.93,153.91,7.99]
[1724760187067,0.04345525,153.93,153.92,7.99]
[1724760187271,4.2,153.98,153.92,7.99]
[1724760187562,69.74281713,154.07,153.96,7.99]
[1724760187563,4.2,154.0,153.96,7.99]
[1724760188362,3.2468,153.98,153.96,8.03927331]
[1724760188568,12.23317271,154.0,153.96,0.04927331]
[1724760188963,3.2468,153.97,153.96,0.04927331]
[1724760196367,11.2368,153.97,153.96,0.04927331]
[1724760198077,3.2468,153.97,153.96,0.04927331]
[1724760201376,11.2368,153.97,153.96,0.04927331]
[1724760209988,7.99,153.97,153.9,2.5238]
[1724760210183,7.99,153.91,153.84,7.99]
[1724760210485,7.99,153.91,153.85,6.63355495]
[1724760210689,7.99,153.91,153.85,3.2494]
[1724760210887,0.04389501,153.9,153.86,0.03749377]
[1724760212286,3.2487,153.89,153.86,0.03749377]
[1724760216992,3.2488,153.88,153.86,0.03749377]
[1724760219999,0.04389501,153.9,153.86,0.03749377]
[1724760220000,3.2487,153.89,153.86,0.03749377]
[1724760222797,3.2488,153.88,153.86,0.03749377]
[1724760223404,3.2486,153.89,153.86,0.03749377]
[1724760227501,3.2488,153.88,153.86,0.03749377]
[1724760229809,3.2486,153.89,153.86,3.28649377]
[1724760230007,0.04389501,153.9,153.86,0.03749377]
[1724760230900,3.2486,153.89,153.86,0.03749377]
[1724760232814,0.04389501,153.9,153.86,0.03749377]
[1724760234308,3.2489,153.88,153.86,0.03749377]
[1724760235814,8.03389501,153.9,153.86,0.03749377]
[1724760236318,3.2489,153.88,153.86,0.03749377]
[1724760237109,3.2486,153.89,153.86,0.03749377]
[1724760237807,3.2488,153.88,153.86,0.03749377]
[1724760243418,3.249,153.87,153.86,0.03749377]
[1724760243927,11.239,153.87,153.86,0.03749377]
[1724760247431,15.319,153.87,153.86,0.03749377]
[1724760249431,3.249,153.87,153.86,0.03749377]
[1724760249627,15.319,153.87,153.86,0.03749377]
[1724760252825,7.329,153.87,153.86,0.03749377]
[1724760253026,3.249,153.87,153.86,0.03749377]
[1724760256833,4.08,153.88,153.86,0.03749377]
[1724760256834,3.2488,153.88,153.86,0.03749377]
[1724760257335,3.249,153.87,153.86,0.03749377]
[1724760257732,4.08,153.89,153.86,0.03749377]
[1724760258237,3.2489,153.88,153.86,0.03749377]
[1724760258932,0.04389501,153.9,153.87,7.99]
[1724760263736,3.29219501,153.9,153.87,7.99]
[1724760263931,0.04389501,153.9,153.86,0.03749377]
[1724760264332,3.2486,153.89,153.86,0.03749377]
[1724760266747,3.29229501,153.9,153.86,3.28669377]
[1724760267248,3.29229501,153.9,153.86,0.03749377]
[1724760267950,0.04389501,153.9,153.87,7.99]
[1724760269154,3.29219501,153.9,153.87,7.99]
[1724760270049,3.29219501,153.9,153.88,7.99]
[1724760270050,0.04389501,153.9,153.88,7.99]
[1724760270250,0.2205,153.99,153.89,7.99]
[1724760270448,4.06,153.98,153.91,7.99]
[1724760270650,3.2474,153.95,153.91,7.99]
[1724760270956,4.06,153.98,153.91,7.99]
[1724760271254,7.99,153.94,153.93,0.0454232]
[1724760272343,11.2375,153.94,153.93,0.0454232]
[1724760273152,7.99,153.94,153.84,5.4042]
[1724760273452,7.99,153.92,153.85,12.67374455]
[1724760273655,7.99,153.92,153.86,3.38383243]
[1724760273841,7.99,153.92,153.85,7.99]
[1724760274044,0.04815414,153.9,153.87,0.03596557]
[1724760275345,3.29645414,153.9,153.87,0.03596557]
[1724760276553,3.2487,153.88,153.87,0.03596557]
[1724760278353,3.2499,153.83,153.81,1.2721]
[1724760278957,7.99,153.9,153.82,7.99]
[1724760279155,4.06,153.89,153.82,7.99]
[1724760279346,0.04636149,153.87,153.82,7.99]
[1724760279553,3.2495,153.85,153.82,7.99]
[1724760279950,3.2495,153.85,153.83,3.38488257]
[1724760280149,3.2495,153.85,153.82,7.99]
[1724760280349,3.2495,153.85,153.83,3.38488261]
[1724760280550,3.2495,153.85,153.82,7.99]
[1724760280947,0.04636149,153.87,153.82,7.99]
[1724760281252,3.2497,153.84,153.81,9.2621]
[1724760282147,3.2498,153.83,153.81,9.2621]
[1724760282556,3.2498,153.83,153.81,1.2721]
[1724760282754,3.2498,153.83,153.8,9.2843]
[1724760285361,3.2505,153.8,153.77,1.3356]
[1724760285561,3.29853706,153.8,153.78,4.68644939]
[1724760285764,3.29853706,153.8,153.79,3.38596777]
[1724760286062,0.04803706,153.8,153.79,11.37596777]
[1724760286257,0.04803706,153.8,153.79,7.99]
[1724760287752,3.29843706,153.8,153.77,1.3356]
[1724760287958,3.29843706,153.8,153.78,3.38606229]
[1724760288263,3.29843706,153.8,153.77,9.3256]
[1724760288570,3.2506,153.79,153.78,3.38606229]
[1724760289064,3.2506,153.79,153.77,1.3356]
[1724760289365,3.2509,153.78,153.76,1.3441]
[1724760291465,3.2511,153.77,153.76,1.3441]
[1724760293267,3.251,153.78,153.76,9.3341]
[1724760294567,3.251,153.78,153.76,1.3441]
[1724760295364,3.2511,153.77,153.76,1.3441]
[1724760296164,3.2511,153.77,153.74,12.5862]
[1724760296770,3.2514,153.76,153.74,9.3345]
[1724760296966,3.2514,153.76,153.74,1.3445]
[1724760297167,3.2515,153.75,153.74,1.3445]
[1724760298860,7.99,153.76,153.62,48.912098]
[1724760299063,0.0487936,153.72,153.69,7.99]
[1724760299363,3.3009936,153.72,153.7,7.99]
[1724760300464,0.0487936,153.72,153.71,7.99]
[1724760300667,6.4983,153.87,153.71,7.99]
[1724760300861,7.99,153.83,153.77,7.99]
[1724760301067,3.2509,153.78,153.77,7.99]
[1724760302376,0.04255012,153.79,153.77,7.99]
[1724760302564,0.04255012,153.79,153.78,7.99]